fUST/lending_fUST_20250618
["ID","MTS","AMOUNT","RATE_DAILY","PERIOD"]
[366359786,1750210231993,-420.0,0.00021917,6]
[366359789,1750210232003,-460.0,0.00021917,6]
[366359793,1750210232013,-440.0,0.00021917,6]
[366359794,1750210232022,-440.0,0.00021917,6]
[366359796,1750210232035,-258.36080698,0.00021917,6]
[366359804,1750210232106,-161.63919302,0.00021917,6]
[366359806,1750210232115,-460.0,0.00021917,6]
[366359808,1750210232124,-420.0,0.00021917,6]
[366359810,1750210232133,-460.0,0.00021917,6]
[366359812,1750210232142,-440.0,0.00021917,6]
[366359814,1750210232151,-460.0,0.00021917,6]
[366359816,1750210232161,-460.0,0.00021917,6]
[366359818,1750210232170,-460.0,0.00021917,6]
[366359820,1750210232179,-420.0,0.00021917,6]
[366359822,1750210232188,-440.0,0.00021917,6]
[366359824,1750210232197,-440.0,0.00021917,6]
[366359825,1750210232206,-460.0,0.00021917,6]
[366359826,1750210232216,-440.0,0.00021917,6]
[366359827,1750210232225,-460.0,0.00021917,6]
[366359828,1750210232234,-420.0,0.00021917,6]
[366359829,1750210232245,-462.41655475,0.00021917,6]
[366359830,1750210232254,-332.62714514,0.00021917,6]
[366359831,1750210232264,-410.0,0.00021917,6]
[366359832,1750210232273,-420.0,0.00021917,6]
[366359833,1750210232282,-608.98413522,0.00021917,6]
[366359834,1750210232292,-440.0,0.00021917,6]
[366359835,1750210232301,-426.72618893,0.00021917,6]
[366359836,1750210232311,-440.0,0.00021917,6]
[366359837,1750210232320,-440.0,0.00021917,6]
[366359838,1750210232329,-422.17399587,0.00021917,6]
[366359839,1750210232339,-440.0,0.00021917,6]
[366359840,1750210232347,-440.0,0.00021917,6]
[366359841,1750210232357,-509.34998201,0.00021917,6]
[366359842,1750210232366,-440.0,0.00021917,6]
[366359843,1750210232375,-440.0,0.00021917,6]
[366359844,1750210232384,-440.0,0.00021917,6]
[366359845,1750210232393,-440.0,0.00021917,6]
[366359846,1750210232403,-440.0,0.00021917,6]
[366359847,1750210232412,-430.0,0.00021917,6]
[366359848,1750210232421,-447.50750268,0.00021917,6]
[366359849,1750210232430,-440.0,0.00021917,6]
[366359850,1750210232439,-440.0,0.00021917,6]
[366359851,1750210232449,-440.0,0.00021917,6]
[366359852,1750210232459,-440.0,0.00021917,6]
[366359853,1750210232468,-379.15900595,0.00021917,6]
[366359854,1750210232478,-179.65659282,0.00021917,6]
[366359855,1750210232490,-260.34340718,0.00021917,6]
[366359856,1750210232499,-460.0,0.00021917,6]
[366359857,1750210232509,-440.0,0.00021917,6]
[366359858,1750210232518,-440.0,0.00021917,6]
[366359859,1750210232527,-440.0,0.00021917,6]
[366359860,1750210232536,-419.61018142,0.00021917,6]
[366359861,1750210232546,-440.0,0.00021917,6]
[366359862,1750210232555,-440.0,0.00021917,6]
[366359863,1750210232564,-403.40766333,0.00021917,5]
[366359864,1750210232574,-460.0,0.00021917,6]
[366359865,1750210232583,-349.9037,0.00021917,6]
[366359866,1750210232592,-436.5062253,0.00021917,6]
[366359867,1750210232601,-440.0,0.00021917,6]
[366359868,1750210232610,-440.0,0.00021917,6]
[366359869,1750210232619,-440.0,0.00021917,6]
[366359870,1750210232628,-440.0,0.00021917,6]
[366359871,1750210232638,-460.0,0.00021917,6]
[366359872,1750210232647,-208.95807854,0.00021917,6]
[366359873,1750210232656,-440.0,0.00021917,6]
[366359874,1750210232665,-440.0,0.00021917,6]
[366359875,1750210232675,-536.1101045,0.00021917,6]
[366359876,1750210232684,-440.0,0.00021917,6]
[366359877,1750210232693,-440.0,0.00021917,6]
[366359878,1750210232702,-366.64023349,0.00021917,6]
[366359879,1750210232711,-460.0,0.00021917,6]
[366359880,1750210232721,-392.84509774,0.00021917,6]
[366359881,1750210232730,-227.21015851,0.00021917,6]
[366359882,1750210232739,-440.0,0.00021917,6]
[366359883,1750210232749,-460.0,0.00021917,6]
[366359884,1750210232758,-420.0,0.00021917,6]
[366359885,1750210232768,-420.0,0.00021917,6]
[366359886,1750210232777,-333.92684136,0.00021917,6]
[366359887,1750210232786,-411.31898292,0.00021917,6]
[366359888,1750210232796,-326.08133367,0.00021917,6]
[366359889,1750210232805,-282.72482161,0.00021917,6]
[366359890,1750210232814,-420.0,0.00021917,6]
[366359891,1750210232823,-460.0,0.00021917,6]
[366359892,1750210232956,-440.0,0.00021917,6]
[366359893,1750210232966,-460.0,0.00021917,6]
[366359894,1750210232975,-460.0,0.00021917,6]
[366359895,1750210232984,-440.0,0.00021917,6]
[366359896,1750210232993,-460.0,0.00021917,6]
[366359897,1750210233002,-440.0,0.00021917,6]
[366359898,1750210233011,-440.0,0.00021917,6]
[366359899,1750210233024,-460.0,0.00021917,6]
[366359900,1750210233034,-421.6133537,0.00021917,6]
[366359901,1750210233043,-460.0,0.00021917,6]
[366359902,1750210233052,-413.96152516,0.00021917,6]
[366359903,1750210233063,-707.76,0.00021917,6]
[366359904,1750210233073,-460.0,0.00021917,6]
[366359905,1750210233082,-447.55,0.00021917,6]
[366359906,1750210233091,-335.90702769,0.00021917,6]
[366359907,1750210233100,-440.0,0.00021917,6]
[366359908,1750210233111,-460.0,0.00021917,6]
[366359909,1750210233122,-160.41041332,0.00021917,6]
[366359910,1750210233131,-460.0,0.00021917,6]
[366359911,1750210233140,-460.0,0.00021917,6]
[366359912,1750210233150,-487.81373247,0.00021917,6]
[366359913,1750210233160,-460.0,0.00021917,6]
[366359914,1750210233169,-440.0,0.00021917,6]
[366359915,1750210233179,-460.0,0.00021917,6]
[366359916,1750210233189,-460.0,0.00021917,6]
[366359917,1750210233199,-460.0,0.00021917,6]
[366359918,1750210233209,-460.0,0.00021917,6]
[366359919,1750210233219,-460.0,0.00021917,6]
[366359920,1750210233229,-460.0,0.00021917,6]
[366359921,1750210233239,-460.0,0.00021917,6]
[366359922,1750210233250,-460.0,0.00021917,6]
[366359923,1750210233266,-460.0,0.00021917,6]
[366359924,1750210233276,-460.0,0.00021917,6]
[366359925,1750210233286,-460.0,0.00021917,6]
[366359926,1750210233296,-460.0,0.00021917,6]
[366359927,1750210233306,-427.22391016,0.00021917,6]
[366359928,1750210233316,-460.0,0.00021917,6]
[366359929,1750210233326,-425.58312469,0.00021917,6]
[366359930,1750210233335,-545.30601806,0.00021917,6]
[366359931,1750210233345,-460.0,0.00021917,6]
[366359932,1750210233355,-460.0,0.00021917,6]
[366359933,1750210233364,-460.0,0.00021917,6]
[366359934,1750210233374,-460.0,0.00021917,6]
[366359935,1750210233384,-460.0,0.00021917,6]
[366359936,1750210233393,-460.0,0.00021917,6]
[366359937,1750210233403,-460.0,0.00021917,6]
[366359938,1750210233413,-460.0,0.00021917,6]
[366359939,1750210233422,-460.0,0.00021917,6]
[366359940,1750210233432,-554.69,0.00021917,6]
[366359941,1750210233442,-460.0,0.00021917,6]
[366359942,1750210233451,-460.0,0.00021917,6]
[366359943,1750210233461,-460.0,0.00021917,6]
[366359944,1750210233471,-595.55288919,0.00021917,6]
[366359945,1750210233480,-460.0,0.00021917,6]
[366359946,1750210233490,-543.05,0.00021917,6]
[366359947,1750210233500,-460.0,0.00021917,6]
[366359948,1750210233509,-460.0,0.00021917,6]
[366359949,1750210233519,-460.0,0.00021917,6]
[366359950,1750210233528,-460.0,0.00021917,6]
[366359951,1750210233538,-460.0,0.00021917,6]
[366359952,1750210233547,-319.18,0.00021917,6]
[366359953,1750210233557,-440.0,0.00021917,6]
[366359954,1750210233566,-460.0,0.00021917,6]
[366359955,1750210233575,-420.0,0.00021917,6]
[366359956,1750210233585,-460.0,0.00021917,6]
[366359957,1750210233594,-460.0,0.00021917,6]
[366359958,1750210233604,-440.0,0.00021917,6]
[366359959,1750210233613,-440.0,0.00021917,6]
[366359960,1750210233622,-460.0,0.00021917,6]
[366359961,1750210233632,-460.0,0.00021917,6]
[366359962,1750210233642,-460.0,0.00021917,6]
[366359963,1750210233651,-460.0,0.00021917,6]
[366359964,1750210233660,-390.0,0.00021917,6]
[366359965,1750210233670,-446.95974058,0.00021917,6]
[366359966,1750210233679,-440.0,0.00021917,6]
[366359967,1750210233688,-460.0,0.00021917,6]
[366359968,1750210233697,-440.0,0.00021917,6]
[366359969,1750210233707,-460.0,0.00021917,6]
[366359970,1750210233717,-499.39,0.00021917,6]
[366359971,1750210233726,-460.0,0.00021917,6]
[366359972,1750210233735,-460.0,0.00021917,6]
[366359973,1750210233746,-460.0,0.00021917,6]
[366359974,1750210233755,-460.0,0.00021917,6]
[366359975,1750210233765,-342.35299928,0.00021917,6]
[366359976,1750210233775,-460.0,0.00021917,6]
[366359977,1750210233784,-460.0,0.00021917,6]
[366359978,1750210233794,-460.0,0.00021917,6]
[366359979,1750210233803,-440.0,0.00021917,6]
[366359980,1750210233813,-460.0,0.00021917,6]
[366359981,1750210233823,-460.0,0.00021917,6]
[366359982,1750210233832,-460.0,0.00021917,6]
[366359983,1750210233842,-420.0,0.00021917,6]
[366359984,1750210233852,-460.0,0.00021917,6]
[366359985,1750210233862,-460.0,0.00021917,6]
[366359986,1750210233872,-460.0,0.00021917,6]
[366359987,1750210233882,-460.0,0.00021917,6]
[366359988,1750210233892,-564.52572047,0.00021917,6]
[366359989,1750210233901,-460.0,0.00021917,6]
[366359990,1750210233911,-460.0,0.00021917,6]
[366359991,1750210233920,-460.0,0.00021917,6]
[366359992,1750210233929,-460.0,0.00021917,6]
[366359993,1750210233938,-460.0,0.00021917,6]
[366359994,1750210233947,-460.0,0.00021917,6]
[366359995,1750210233956,-579.75434011,0.00021917,6]
[366359996,1750210233966,-460.0,0.00021917,6]
[366359997,1750210233975,-430.0,0.00021917,6]
[366359998,1750210233985,-420.0,0.00021917,6]
[366359999,1750210233994,-460.0,0.00021917,6]
[366360000,1750210234004,-430.0,0.00021917,6]
[366360001,1750210234014,-460.0,0.00021917,6]
[366360002,1750210234028,-460.0,0.00021917,6]
[366360003,1750210234037,-460.0,0.00021917,6]
[366360004,1750210234046,-420.0,0.00021917,6]
[366360005,1750210234056,-429.70678619,0.00021917,6]
[366360006,1750210234067,-460.0,0.00021917,6]
[366360007,1750210234077,-272.87737465,0.00021917,6]
[366360008,1750210234086,-460.0,0.00021917,6]
[366360009,1750210234096,-460.0,0.00021917,6]
[366360010,1750210234106,-199.50750225,0.00021917,6]
[366360011,1750210234115,-440.0,0.00021917,6]
[366360012,1750210234123,-460.0,0.00021917,6]
[366360013,1750210234132,-460.0,0.00021917,6]
[366360014,1750210234142,-382.027105,0.00021917,6]
[366360015,1750210234152,-460.0,0.00021917,6]
[366360016,1750210234161,-421.2969658,0.00021917,6]
[366360017,1750210234171,-204.04723304,0.00021917,6]
[366360018,1750210234180,-460.0,0.00021917,6]
[366360019,1750210234190,-509.50165453,0.00021917,6]
[366360020,1750210234199,-430.0,0.00021917,6]
[366360021,1750210234209,-460.0,0.00021917,6]
[366360022,1750210234218,-422.27855486,0.00021917,6]
[366360023,1750210234228,-464.62483185,0.00021917,6]
[366360024,1750210234238,-460.0,0.00021917,6]
[366360025,1750210234249,-325.46255972,0.00021917,6]
[366360026,1750210234259,-422.40729931,0.00021917,6]
[366360027,1750210234269,-427.47804613,0.00021917,6]
[366360028,1750210234279,-460.0,0.00021917,6]
[366360029,1750210234291,-460.0,0.00021917,6]
[366360030,1750210234301,-500.0,0.00021917,6]
[366360031,1750210234311,-260.54678553,0.00021917,6]
[366360032,1750210234321,-460.0,0.00021917,6]
[366360033,1750210234331,-452.15855145,0.00021917,6]
[366360034,1750210234341,-478.72377625,0.00021917,6]
[366360035,1750210234351,-460.0,0.00021917,6]
[366360036,1750210234360,-460.0,0.00021917,6]
[366360037,1750210234369,-460.0,0.00021917,6]
[366360038,1750210234380,-460.0,0.00021917,6]
[366360039,1750210234389,-4060.83674309,0.00021995,2]
[366360040,1750210234398,-370.0,0.00022027,6]
[366360041,1750210234408,-707.76,0.00022027,6]
[366360042,1750210234417,-460.0,0.00022027,6]
[366360043,1750210234426,-460.0,0.00022027,6]
[366360044,1750210234436,-460.0,0.00022027,6]
[366360045,1750210234445,-460.0,0.00022027,6]
[366360046,1750210234454,-477.0,0.00022027,6]
[366360047,1750210234463,-460.0,0.00022027,6]
[366360048,1750210234472,-460.0,0.00022027,6]
[366360049,1750210234482,-460.0,0.00022027,6]
[366360050,1750210234491,-460.0,0.00022027,6]
[366360051,1750210234501,-460.0,0.00022027,6]
[366360052,1750210234510,-460.0,0.00022027,6]
[366360053,1750210234519,-460.0,0.00022027,6]
[366360054,1750210234528,-460.0,0.00022027,6]
[366360055,1750210234538,-460.0,0.00022027,6]
[366360056,1750210234547,-390.0,0.00022027,6]
[366360057,1750210234556,-460.0,0.00022027,6]
[366360058,1750210234565,-460.0,0.00022027,6]
[366360059,1750210234575,-460.0,0.00022027,6]
[366360060,1750210234584,-460.0,0.00022027,6]
[366360061,1750210234593,-460.0,0.00022027,6]
[366360062,1750210234603,-165.55,0.00022027,6]
[366360063,1750210234612,-460.0,0.00022027,6]
[366360064,1750210234622,-460.0,0.00022027,6]
[366360065,1750210234631,-460.0,0.00022027,6]
[366360066,1750210234640,-305.70226239,0.00022027,6]
[366360067,1750210234649,-460.0,0.00022027,6]
[366360068,1750210234658,-460.0,0.00022027,6]
[366360069,1750210234668,-460.0,0.00022027,6]
[366360070,1750210234677,-460.0,0.00022027,6]
[366360071,1750210234686,-460.0,0.00022027,6]
[366360072,1750210234696,-565.33449639,0.00022027,6]
[366360073,1750210234705,-239.92251343,0.00022027,6]
[366360074,1750210234714,-460.0,0.00022027,6]
[366360075,1750210234723,-460.0,0.00022027,6]
[366360076,1750210234732,-488.14601423,0.00022027,6]
[366360077,1750210234741,-469.29796237,0.00022027,6]
[366360078,1750210234751,-479.54373899,0.00022027,6]
[366360079,1750210234760,-417.44400183,0.00022038,6]
[366360080,1750210234770,-420.0,0.00022091,6]
[366360081,1750210234779,-420.0,0.00022091,6]
[366360082,1750210234788,-460.0,0.00022091,6]
[366360083,1750210234797,-460.0,0.00022091,6]
[366360084,1750210234807,-433.19800564,0.00022091,6]
[366360085,1750210234815,-460.0,0.00022091,6]
[366360086,1750210234825,-358.92054944,0.00022091,6]
[366360087,1750210234834,-460.0,0.00022091,6]
[366360088,1750210234843,-420.0,0.00022091,6]
[366360089,1750210234854,-250.24167405,0.00022091,6]
[366360090,1750210234863,-369.68542956,0.00022091,6]
[366360091,1750210234873,-440.0,0.00022091,6]
[366360092,1750210234882,-440.0,0.00022091,6]
[366360093,1750210234891,-500.0,0.00022091,6]
[366360094,1750210234901,-460.0,0.00022091,6]
[366360095,1750210234911,-420.0,0.00022091,6]
[366360096,1750210234922,-460.0,0.00022091,6]
[366360097,1750210234931,-485.48,0.00022091,6]
[366360098,1750210234940,-440.0,0.00022091,6]
[366360099,1750210234950,-440.0,0.00022091,6]
[366360100,1750210234960,-460.0,0.00022091,6]
[366360101,1750210234970,-430.0,0.00022091,6]
[366360102,1750210234980,-440.0,0.00022091,6]
[366360103,1750210234989,-440.0,0.00022091,6]
[366360104,1750210235000,-1000.0,0.000221,2]
[366360105,1750210235009,-1000.0,0.000221,2]
[366360106,1750210235022,-1000.0,0.000221,2]
[366360107,1750210235032,-1000.0,0.000221,2]
[366360108,1750210235041,-742.27,0.000221,7]
[366360109,1750210235051,-1000.0,0.0002211,2]
[366360110,1750210235061,-1000.0,0.0002211,2]
[366360111,1750210235071,-1000.0,0.0002211,2]
[366360112,1750210235081,-1000.0,0.0002211,2]
[366360113,1750210235090,-1000.0,0.0002211,2]
[366360114,1750210235102,-1000.0,0.0002211,2]
[366360115,1750210235112,-707.76,0.00022136,6]
[366360116,1750210235122,-540.54121073,0.00022136,6]
[366360117,1750210235131,-460.0,0.00022136,6]
[366360118,1750210235141,-460.0,0.00022136,6]
[366360119,1750210235150,-423.54,0.00022136,6]
[366360120,1750210235160,-164.94,0.00022136,6]
[366360121,1750210235169,-460.0,0.00022136,6]
[366360122,1750210235179,-460.0,0.00022136,6]
[366360123,1750210235189,-460.0,0.00022136,6]
[366360124,1750210235198,-460.0,0.00022136,6]
[366360125,1750210235207,-460.0,0.00022136,6]
[366360126,1750210235217,-460.0,0.00022136,6]
[366360127,1750210235227,-460.0,0.00022136,6]
[366360128,1750210235237,-460.0,0.00022136,6]
[366360129,1750210235248,-460.0,0.00022136,6]
[366360130,1750210235257,-417.44400183,0.00022176,6]
[366360131,1750210235267,-460.0,0.00022201,6]
[366360132,1750210235277,-484.00064683,0.00022201,6]
[366360133,1750210235287,-460.0,0.00022201,6]
[366360134,1750210235296,-460.0,0.00022201,6]
[366360135,1750210235306,-460.0,0.00022201,6]
[366360136,1750210235316,-707.76,0.00022246,6]
[366360137,1750210235326,-460.0,0.00022246,6]
[366360138,1750210235335,-460.0,0.00022246,6]
[366360139,1750210235345,-460.0,0.00022246,6]
[366360140,1750210235358,-460.0,0.00022246,6]
[366360141,1750210235370,-169.15456316,0.00022246,6]
[366360142,1750210235379,-460.0,0.00022246,6]
[366360143,1750210235388,-460.0,0.00022246,6]
[366360144,1750210235398,-539.26411013,0.00022246,6]
[366360145,1750210235408,-460.0,0.00022299,6]
[366360146,1750210235418,-1000.0,0.000223,2]
[366360147,1750210235428,-1000.0,0.000223,2]
[366360148,1750210235437,-1000.0,0.000223,2]
[366360149,1750210235446,-1000.0,0.000223,2]
[366360150,1750210235455,-1000.0,0.000223,2]
[366360151,1750210235465,-1000.0,0.000223,2]
[366360152,1750210235474,-417.44400183,0.00022314,7]
[366360153,1750210235484,-1000.0,0.0002233,2]
[366360154,1750210235494,-1000.0,0.0002233,2]
[366360155,1750210235504,-1000.0,0.0002233,2]
[366360156,1750210235514,-1000.0,0.0002233,2]
[366360157,1750210235523,-707.76,0.00022356,6]
[366360158,1750210235533,-163.16,0.00022356,6]
[366360159,1750210235542,-436.96,0.00022356,6]
[366360160,1750210235552,-362.7745404,0.00022356,6]
[366360161,1750210235562,-460.0,0.00022356,6]
[366360162,1750210235571,-170.4828,0.00022356,6]
[366360163,1750210235580,-460.0,0.00022356,6]
[366360164,1750210235590,-1000.0,0.0002245,7]
[366360165,1750210235599,-1000.0,0.0002245,7]
[366360166,1750210235608,-1000.0,0.0002245,7]
[366360167,1750210235618,-1000.0,0.0002245,7]
[366360168,1750210235628,-1000.0,0.0002245,7]
[366360169,1750210235638,-1000.0,0.0002245,7]
[366360170,1750210235647,-417.44400183,0.00022452,7]
[366360171,1750210235656,-707.76,0.00022465,6]
[366360172,1750210235666,-460.0,0.00022465,6]
[366360173,1750210235675,-460.0,0.00022465,6]
[366360174,1750210235685,-707.76,0.00022575,6]
[366360175,1750210235694,-460.0,0.00022575,6]
[366360176,1750210235703,-408.23788376,0.00022575,6]
[366360177,1750210235713,-417.44400183,0.0002259,7]
[366360178,1750210235722,-10104.35978122,0.00022654,7]
[366360179,1750210235732,-10104.35978122,0.00022654,7]
[366360180,1750210235741,-12540.12310952,0.00022654,7]
[366360181,1750210235752,-707.76,0.00022684,6]
[366360182,1750210235761,-460.0,0.00022684,6]
[366360183,1750210235771,-207.4,0.00022702,2]
[366360184,1750210235781,-417.44400183,0.00022728,7]
[366360185,1750210235791,-707.76,0.00022794,6]
[366360186,1750210235800,-460.0,0.00022794,6]
[366360187,1750210235810,-417.44400183,0.00022866,8]
[366360188,1750210235819,-707.76,0.00022904,6]
[366360189,1750210235829,-460.0,0.00022904,6]
[366360190,1750210235838,-417.44400183,0.00023003,8]
[366360191,1750210235944,-707.76,0.00023013,6]
[366360192,1750210235954,-460.0,0.00023013,6]
[366360193,1750210235965,-707.76,0.00023123,6]
[366360194,1750210235974,-460.0,0.00023123,6]
[366360195,1750210235983,-417.44400183,0.00023141,8]
[366360196,1750210235992,-2423.0,0.00023165,2]
[366360197,1750210236003,-707.76,0.00023232,6]
[366360198,1750210236012,-460.0,0.00023232,6]
[366360199,1750210236025,-417.44400183,0.00023279,8]
[366360200,1750210236034,-1000.0,0.0002333,2]
[366360201,1750210236044,-1000.0,0.0002333,2]
[366360202,1750210236053,-1000.0,0.0002333,2]
[366360203,1750210236065,-514.92,0.0002333,2]
[366360204,1750210236074,-707.76,0.00023342,6]
[366360205,1750210236083,-460.0,0.00023342,6]
[366360206,1750210236092,-12540.12310952,0.00023403,2]
[366360207,1750210236103,-213.39869953,0.00023403,2]
[366360208,1750210236114,-845.62440851,0.00023403,2]
[366360209,1750210236123,-417.44400183,0.00023417,9]
[366360210,1750210236132,-707.76,0.00023452,6]
[366360211,1750210236142,-460.0,0.00023452,6]
[366360212,1750210236151,-329.0,0.00023454,2]
[366360213,1750210236160,-500.0,0.00023499,2]
[366360214,1750210236170,-500.0,0.00023499,2]
[366360215,1750210236180,-313.84264454,0.00023499,2]
[366360216,1750210236190,-500.0,0.00023499,2]
[366360217,1750210236199,-500.0,0.00023499,2]
[366360218,1750210236208,-827.51077,0.00023499,2]
[366360219,1750210236217,-742.27,0.000235,7]
[366360220,1750210236227,-99723.83,0.000235,7]
[366360221,1750210236237,-329.0,0.00023517,2]
[366360222,1750210236251,-361.149644,0.0002352,3]
[366360223,1750210236260,-417.44400183,0.00023555,9]
[366360224,1750210236270,-707.76,0.00023561,6]
[366360225,1750210236279,-460.0,0.00023561,6]
[366360226,1750210236289,-2423.0,0.00023651,2]
[366360227,1750210236299,-707.76,0.00023671,6]
[366360228,1750210236308,-460.0,0.00023671,6]
[366360229,1750210236318,-417.44400183,0.00023693,9]
[366360230,1750210236327,-1170.97,0.00023713,2]
[366360231,1750210236337,-707.76,0.0002378,6]
[366360232,1750210236347,-460.0,0.0002378,6]
[366360233,1750210236356,-21549.18613413,0.000238,2]
[366360234,1750210236366,-417.44400183,0.00023831,10]
[366360235,1750210236375,-707.76,0.0002389,6]
[366360236,1750210236385,-320.68885435,0.0002389,6]
[366360237,1750210236394,-500.0,0.000239,2]
[366360238,1750210236404,-163.06265066,0.000239,2]
[366360239,1750210237887,-361.22759235,0.00021698,2]
[366360240,1750210240064,-4638.77240765,0.00021698,2]
[366360243,1750210240073,-470.15438063,0.00021917,6]
[366360244,1750210240083,-336.93734934,0.000239,2]
[366360245,1750210240093,-500.0,0.000239,2]
[366360246,1750210240103,-500.0,0.000239,2]
[366360247,1750210240113,-307.05318785,0.000239,3]
[366360248,1750210240123,-417.44400183,0.00023969,10]
[366360249,1750210240133,-420.0,0.00023972,6]
[366360250,1750210240142,-460.0,0.00023972,6]
[366360251,1750210240153,-440.0,0.00023972,6]
[366360252,1750210240162,-440.0,0.00023972,6]
[366360253,1750210240171,-458.05380253,0.00023972,6]
[366360254,1750210240180,-500.0,0.00023973,2]
[366360255,1750210240189,-500.0,0.00023973,2]
[366360256,1750210240198,-600.0,0.00023973,2]
[366360257,1750210240207,-500.0,0.00023973,2]
[366360258,1750210240217,-500.0,0.00023973,2]
[366360259,1750210240227,-500.0,0.00023973,2]
[366360260,1750210240236,-500.0,0.00023973,2]
[366360261,1750210240245,-500.0,0.00023973,2]
[366360262,1750210240255,-500.0,0.00023973,2]
[366360263,1750210240264,-500.0,0.00023997,6]
[366360264,1750210240273,-11771.5848726,0.00023998,5]
[366360274,1750210319933,199.70745342,0.000222,69]
[366360275,1750210425049,162.240238,0.00013699,2]
[366360284,1750210990067,4474.23865583,0.00025152,120]
[366360285,1750211149272,-151.16903462,0.00019517,2]
[366360286,1750211149299,-1732.84367276,0.00019562,2]
[366360287,1750211158045,-150.0,0.00018975,2]
[366360288,1750211159096,-55.7628798,0.00018975,2]
[366360289,1750211159118,-1914.70220895,0.00019562,2]
[366360291,1750211239099,-4717.21902686,0.00019421,2]
[366360292,1750211254092,-282.78097314,0.00019421,2]
[366360293,1750211254116,-179.8785242,0.00019617,2]
[366360294,1750211254139,-153.64491246,0.00019762,2]
[366360295,1750211318969,-5000.0,0.00019564,2]
[366360296,1750211318992,-420.48,0.00019967,2]
[366360297,1750211319014,-300.0,0.00020998,2]
[366360298,1750211319036,-300.0,0.00020999,2]
[366360299,1750211319058,-1200.0,0.00020999,2]
[366360300,1750211319079,-300.0,0.00020999,2]
[366360301,1750211319100,-4323.95,0.00021,2]
[366360302,1750211319121,-150.0,0.000217,2]
[366360303,1750211319145,-840.96,0.00021782,2]
[366360304,1750211319166,-173.48345682,0.00021817,2]
[366360305,1750211319193,-320.57108452,0.000219,6]
[366360306,1750211319218,-7164.71446397,0.000219,2]
[366360307,1750211319241,-224.42,0.00021907,10]
[366360308,1750211319269,-360.73009221,0.00021916,2]
[366360309,1750211319293,-606.81449992,0.00021916,2]
[366360310,1750211319314,-359.35610497,0.00021916,2]
[366360311,1750211319339,-183.01449906,0.00021916,2]
[366360312,1750211319361,-500.0,0.00021916,2]
[366360313,1750211319383,-180.98560886,0.00021916,2]
[366360314,1750211319407,-196.27343359,0.00021916,2]
[366360315,1750211319431,-500.0,0.00021917,6]
[366360316,1750211319452,-597.69170077,0.00021917,6]
[366360317,1750211319473,-460.0,0.00021917,6]
[366360318,1750211319495,-514.46290368,0.00021917,6]
[366360319,1750211319517,-468.17993182,0.00021917,6]
[366360320,1750211319538,-412.92412149,0.00021917,6]
[366360321,1750211319562,-458.40269902,0.00021917,6]
[366360322,1750211319585,-444.04759383,0.00021917,6]
[366360323,1750211319606,-460.30254957,0.00021917,6]
[366360324,1750211319628,-444.27565539,0.00021917,6]
[366360325,1750211319651,-133.95960051,0.00021917,6]
[366360326,1750211349961,-5000.0,0.00021753,2]
[366360327,1750211349984,-525.70748846,0.00021917,6]
[366360328,1750211350007,-313.37125661,0.00021917,6]